[Event "*** Titled Tuesday Blitz"]
[Site "Chess.com"]
[Date "2020.11.24"]
[Round "7"]
[White "mbachez"]
[Black "Tpros"]
[Result "1-0"]
[WhiteElo "2444"]
[BlackElo "2587"]
[TimeControl "180+1"]
[EndTime "11:34:58 PST"]
[Termination "mbachez won on time"]

1. e4 {[%clk 0:03:00.9]} 1... c5 {[%clk 0:02:59.1]} 2. Nf3 {[%clk 0:03:00.2]}
2... a6 {[%clk 0:02:58.7]} 3. g3 {[%clk 0:02:55]} 3... d6 {[%clk 0:02:58.8]} 4.
Bg2 {[%clk 0:02:55.1]} 4... Nc6 {[%clk 0:02:59.7]} 5. O-O {[%clk 0:02:54.9]}
5... e5 {[%clk 0:03:00.2]} 6. c3 {[%clk 0:02:54.9]} 6... Bg4 {[%clk 0:02:59.4]}
7. h3 {[%clk 0:02:49.1]} 7... Bxf3 {[%clk 0:02:59.4]} 8. Qxf3 {[%clk 0:02:49.1]}
8... Nf6 {[%clk 0:02:57]} 9. d3 {[%clk 0:02:49.3]} 9... Be7 {[%clk 0:02:57.4]}
10. Nd2 {[%clk 0:02:49.3]} 10... b5 {[%clk 0:02:56.9]} 11. Rd1 {[%clk
0:02:49.2]} 11... O-O {[%clk 0:02:56.6]} 12. Nf1 {[%clk 0:02:49.2]} 12... Rb8
{[%clk 0:02:54.8]} 13. a4 {[%clk 0:02:49.2]} 13... b4 {[%clk 0:02:54.2]} 14. Ne3
{[%clk 0:02:48.1]} 14... bxc3 {[%clk 0:02:54.1]} 15. bxc3 {[%clk 0:02:49]} 15...
g6 {[%clk 0:02:53.1]} 16. Nc4 {[%clk 0:02:47.1]} 16... Na5 {[%clk 0:02:53.3]}
17. Bh6 {[%clk 0:02:33]} 17... Re8 {[%clk 0:02:52.1]} 18. Ne3 {[%clk 0:02:30.2]}
18... Rb3 {[%clk 0:02:41.3]} 19. Rdc1 {[%clk 0:02:19]} 19... Nc6 {[%clk
0:02:28.4]} 20. Bg5 {[%clk 0:02:15.5]} 20... Nh5 {[%clk 0:02:27.1]} 21. Bxe7
{[%clk 0:02:05.8]} 21... Nxe7 {[%clk 0:02:28]} 22. Qe2 {[%clk 0:02:02.9]} 22...
Qa5 {[%clk 0:02:20.8]} 23. Qc2 {[%clk 0:02:01.1]} 23... Reb8 {[%clk 0:02:16.8]}
24. Nc4 {[%clk 0:02:00.7]} 24... Qc7 {[%clk 0:02:16.5]} 25. Rcb1 {[%clk
0:02:00.1]} 25... Rxb1+ {[%clk 0:02:12.2]} 26. Rxb1 {[%clk 0:02:01]} 26... Nf6
{[%clk 0:02:02.3]} 27. h4 {[%clk 0:01:52.3]} 27... Nd7 {[%clk 0:01:54.6]} 28. h5
{[%clk 0:01:46.4]} 28... Kg7 {[%clk 0:01:49.2]} 29. Qc1 {[%clk 0:01:41.5]} 29...
h6 {[%clk 0:01:48.3]} 30. hxg6 {[%clk 0:01:39.5]} 30... fxg6 {[%clk 0:01:46.6]}
31. Bh3 {[%clk 0:01:39]} 31... Nb6 {[%clk 0:01:42.5]} 32. Qb2 {[%clk 0:00:52.2]}
32... Nd7 {[%clk 0:01:42.5]} 33. Qa2 {[%clk 0:00:51.1]} 33... Nb6 {[%clk
0:00:45.2]} 34. Ne3 {[%clk 0:00:48.4]} 34... a5 {[%clk 0:00:35.9]} 35. Qe6
{[%clk 0:00:46.4]} 35... Ng8 {[%clk 0:00:22.8]} 36. Rb5 {[%clk 0:00:37.7]} 36...
Nxa4 {[%clk 0:00:14]} 37. Rxb8 {[%clk 0:00:36.5]} 37... Qxb8 {[%clk 0:00:14.5]}
38. Qd7+ {[%clk 0:00:36.6]} 38... Kh8 {[%clk 0:00:08.5]} 39. Qxa4 {[%clk
0:00:36.1]} 39... Qb1+ {[%clk 0:00:09.3]} 40. Kg2 {[%clk 0:00:35]} 40... Qxd3
{[%clk 0:00:09.3]} 41. Nd5 {[%clk 0:00:32.6]} 41... h5 {[%clk 0:00:06.5]} 42.
Be6 {[%clk 0:00:31.5]} 1-0

[Event "*** Titled Tuesday Blitz"]
[Site "Chess.com"]
[Date "2020.11.24"]
[Round "7"]
[White "Nuvas"]
[Black "albi1999"]
[Result "0-1"]
[WhiteElo "2420"]
[BlackElo "2594"]
[TimeControl "180+1"]
[EndTime "11:34:58 PST"]
[Termination "albi1999 won by resignation"]

1. d4 {[%clk 0:02:57]} 1... Nf6 {[%clk 0:02:59]} 2. c4 {[%clk 0:02:57.7]} 2...
e6 {[%clk 0:02:58.9]} 3. Nc3 {[%clk 0:02:58.4]} 3... d5 {[%clk 0:02:57.7]} 4.
cxd5 {[%clk 0:02:58.3]} 4... Nxd5 {[%clk 0:02:58.6]} 5. e4 {[%clk 0:02:58.4]}
5... Nxc3 {[%clk 0:02:59.2]} 6. bxc3 {[%clk 0:02:59]} 6... c5 {[%clk 0:03:00.1]}
7. Nf3 {[%clk 0:02:59]} 7... cxd4 {[%clk 0:03:00.7]} 8. cxd4 {[%clk 0:02:59.6]}
8... Bb4+ {[%clk 0:03:01.3]} 9. Bd2 {[%clk 0:03:00.3]} 9... Bxd2+ {[%clk
0:03:02.2]} 10. Qxd2 {[%clk 0:03:01]} 10... O-O {[%clk 0:03:03.1]} 11. Rc1
{[%clk 0:02:59.1]} 11... b6 {[%clk 0:03:02.8]} 12. Bd3 {[%clk 0:02:55.3]} 12...
Bb7 {[%clk 0:03:03.1]} 13. Qe3 {[%clk 0:02:55.7]} 13... Nd7 {[%clk 0:03:02.9]}
14. e5 {[%clk 0:02:55.8]} 14... Rc8 {[%clk 0:02:52.6]} 15. O-O {[%clk
0:02:54.1]} 15... Rxc1 {[%clk 0:02:46.4]} 16. Rxc1 {[%clk 0:02:55]} 16... Bxf3
{[%clk 0:02:41.4]} 17. Qxf3 {[%clk 0:02:53.6]} 17... Nb8 {[%clk 0:02:41.4]} 18.
Qe4 {[%clk 0:02:22.7]} 18... g6 {[%clk 0:02:41.2]} 19. Bb5 {[%clk 0:02:22.9]}
19... Qe7 {[%clk 0:02:34.1]} 20. d5 {[%clk 0:01:47.6]} 20... exd5 {[%clk
0:02:31.4]} 21. Qxd5 {[%clk 0:01:47.5]} 21... Rd8 {[%clk 0:02:29.4]} 22. Qe4
{[%clk 0:01:25.2]} 22... Nd7 {[%clk 0:02:24.5]} 23. Rc7 {[%clk 0:01:13.3]} 23...
Nc5 {[%clk 0:01:49.8]} 24. Rxe7 {[%clk 0:01:03.5]} 24... Rd1+ {[%clk 0:01:48.2]}
25. Bf1 {[%clk 0:01:03.8]} 25... Nxe4 {[%clk 0:01:47.7]} 26. g3 {[%clk
0:01:04.1]} 26... Nd2 {[%clk 0:01:44.4]} 27. Kg2 {[%clk 0:00:46]} 27... Rxf1
{[%clk 0:01:38.1]} 28. Rd7 {[%clk 0:00:44.2]} 28... Rd1 {[%clk 0:01:38.1]} 29.
f4 {[%clk 0:00:36.3]} 29... Nc4 {[%clk 0:01:35.5]} 30. Rxa7 {[%clk 0:00:26.4]}
30... Rd2+ {[%clk 0:01:34.3]} 31. Kh3 {[%clk 0:00:26.8]} 31... h5 {[%clk
0:01:30.7]} 32. Rc7 {[%clk 0:00:26.2]} 32... b5 {[%clk 0:01:29.6]} 33. Rc5
{[%clk 0:00:25.9]} 33... Rxa2 {[%clk 0:01:28.7]} 34. Rxb5 {[%clk 0:00:26.5]}
34... Ne3 {[%clk 0:01:29.4]} 35. e6 {[%clk 0:00:25.8]} 35... fxe6 {[%clk
0:01:25.6]} 36. Rb7 {[%clk 0:00:25.5]} 36... Nf5 {[%clk 0:01:21.1]} 37. Rc7
{[%clk 0:00:22.4]} 37... Re2 {[%clk 0:01:18.1]} 38. Rb7 {[%clk 0:00:22.5]} 38...
e5 {[%clk 0:01:16.8]} 39. fxe5 {[%clk 0:00:22.2]} 39... Rxe5 {[%clk 0:01:17.7]}
40. Rc7 {[%clk 0:00:22.6]} 40... Re7 {[%clk 0:01:17.3]} 41. Rc6 {[%clk
0:00:23.1]} 41... Kg7 {[%clk 0:01:17]} 42. Rb6 {[%clk 0:00:23.1]} 42... Kh6
{[%clk 0:01:15.8]} 43. Rb2 {[%clk 0:00:20.8]} 43... Kg5 {[%clk 0:01:14]} 44. Kg2
{[%clk 0:00:21.2]} 44... Ne3+ {[%clk 0:01:13.8]} 45. Kh3 {[%clk 0:00:21.2]}
45... Ng4 {[%clk 0:01:14.7]} 46. Rb5+ {[%clk 0:00:19.9]} 46... Re5 {[%clk
0:01:14.3]} 47. Rb2 {[%clk 0:00:19]} 47... Rf5 {[%clk 0:01:14.5]} 48. Kg2 {[%clk
0:00:19.4]} 48... Rc5 {[%clk 0:01:13.2]} 49. h3 {[%clk 0:00:18.7]} 49... Rc2+
{[%clk 0:01:11.5]} 50. Rxc2 {[%clk 0:00:19.5]} 50... Ne3+ {[%clk 0:01:12]} 51.
Kf3 {[%clk 0:00:19.8]} 51... Nxc2 {[%clk 0:01:12.9]} 52. Ke4 {[%clk 0:00:17]}
52... Na3 {[%clk 0:01:11.7]} 53. Kf3 {[%clk 0:00:16.1]} 53... Nc4 {[%clk
0:01:11.7]} 54. Ke4 {[%clk 0:00:16.7]} 54... Nd6+ {[%clk 0:01:11.7]} 55. Kf3
{[%clk 0:00:17.1]} 55... Nf5 {[%clk 0:01:11.9]} 56. Kf2 {[%clk 0:00:17.3]} 56...
Kf6 {[%clk 0:01:12]} 57. Kf3 {[%clk 0:00:17.6]} 57... Ne7 {[%clk 0:01:12]} 58.
Kf4 {[%clk 0:00:17.3]} 58... g5+ {[%clk 0:01:11.8]} 59. Kf3 {[%clk 0:00:17.3]}
59... Ke5 {[%clk 0:01:11.7]} 60. Ke3 {[%clk 0:00:17.1]} 60... Nf5+ {[%clk
0:01:11.5]} 61. Kf3 {[%clk 0:00:17.4]} 61... Nd6 {[%clk 0:01:12]} 62. g4 {[%clk
0:00:17.6]} 62... h4 {[%clk 0:01:12.1]} 0-1

[Event "*** Titled Tuesday Blitz"]
[Site "Chess.com"]
[Date "2020.11.24"]
[Round "7"]
[White "PowerThinking2650"]
[Black "PLAYER_2006_M"]
[Result "1-0"]
[WhiteElo "2380"]
[BlackElo "2485"]
[TimeControl "180+1"]
[EndTime "11:34:58 PST"]
[Termination "PowerThinking2650 won by resignation"]

1. e4 {[%clk 0:03:00.9]} 1... e5 {[%clk 0:02:55.8]} 2. Nf3 {[%clk 0:03:00.7]}
2... Nc6 {[%clk 0:02:55.5]} 3. Nc3 {[%clk 0:03:01]} 3... Nf6 {[%clk 0:02:55.1]}
4. d4 {[%clk 0:03:01.5]} 4... exd4 {[%clk 0:02:56]} 5. Nxd4 {[%clk 0:03:02]}
5... Bb4 {[%clk 0:02:56.7]} 6. Nxc6 {[%clk 0:03:02.1]} 6... bxc6 {[%clk
0:02:57.6]} 7. Bd3 {[%clk 0:03:02.4]} 7... d5 {[%clk 0:02:57.9]} 8. exd5 {[%clk
0:03:02.8]} 8... O-O {[%clk 0:02:55.9]} 9. O-O {[%clk 0:03:01.8]} 9... cxd5
{[%clk 0:02:55.5]} 10. Bg5 {[%clk 0:02:59.3]} 10... c6 {[%clk 0:02:55.6]} 11.
Qf3 {[%clk 0:02:59.8]} 11... h6 {[%clk 0:02:55.3]} 12. Bxf6 {[%clk 0:02:59.7]}
12... Qxf6 {[%clk 0:02:56.2]} 13. Qxf6 {[%clk 0:03:00.1]} 13... gxf6 {[%clk
0:02:57.1]} 14. Ne2 {[%clk 0:03:00.2]} 14... Rb8 {[%clk 0:02:55.7]} 15. Ng3
{[%clk 0:02:56.9]} 15... Bd6 {[%clk 0:02:54.6]} 16. b3 {[%clk 0:02:55.4]} 16...
Be6 {[%clk 0:02:54.1]} 17. Nf5 {[%clk 0:02:54.6]} 17... Bxf5 {[%clk 0:02:51.2]}
18. Bxf5 {[%clk 0:02:55.5]} 18... Bb4 {[%clk 0:02:47.4]} 19. Rad1 {[%clk
0:02:51.6]} 19... Rbd8 {[%clk 0:02:46]} 20. Rd3 {[%clk 0:02:44.4]} 20... Rfe8
{[%clk 0:02:45.1]} 21. Rd4 {[%clk 0:02:26.4]} 21... Bc3 {[%clk 0:02:42.1]} 22.
Ra4 {[%clk 0:02:22]} 22... a5 {[%clk 0:02:41]} 23. Rg4+ {[%clk 0:02:20.7]} 23...
Kf8 {[%clk 0:02:40.6]} 24. g3 {[%clk 0:02:17]} 24... Re5 {[%clk 0:02:37.4]} 25.
Bh7 {[%clk 0:02:07.8]} 25... Rg5 {[%clk 0:02:29]} 26. Rf4 {[%clk 0:02:05.4]}
26... Re8 {[%clk 0:02:26.7]} 27. Bf5 {[%clk 0:02:02.3]} 27... Re5 {[%clk
0:01:56.8]} 28. Bd7 {[%clk 0:02:01.7]} 28... c5 {[%clk 0:01:50.7]} 29. Rf3
{[%clk 0:01:59]} 29... d4 {[%clk 0:01:48.6]} 30. Rxc3 {[%clk 0:01:46.3]} 30...
dxc3 {[%clk 0:01:48]} 31. f4 {[%clk 0:01:46.3]} 31... Rd5 {[%clk 0:01:44.1]} 32.
fxg5 {[%clk 0:01:43.9]} 32... Rxd7 {[%clk 0:01:44.2]} 33. gxh6 {[%clk
0:01:23.3]} 33... Rd2 {[%clk 0:01:39.2]} 34. Rf2 {[%clk 0:01:22.9]} 34... Rd1+
{[%clk 0:01:29]} 35. Kg2 {[%clk 0:01:22.4]} 35... Ra1 {[%clk 0:01:28.7]} 36. Rf3
{[%clk 0:01:17.1]} 36... Rxa2 {[%clk 0:01:24.1]} 37. Rxc3 {[%clk 0:01:16.6]}
37... Kg8 {[%clk 0:01:24.6]} 38. Rxc5 {[%clk 0:01:13.8]} 38... Kh7 {[%clk
0:01:24.5]} 39. Rc6 {[%clk 0:01:10.6]} 39... Kxh6 {[%clk 0:01:18.8]} 40. Rxf6+
{[%clk 0:01:09.4]} 40... Kg5 {[%clk 0:01:19.2]} 41. Rxf7 {[%clk 0:01:03.2]}
41... Rxc2+ {[%clk 0:01:18.8]} 42. Rf2 {[%clk 0:01:03]} 42... Rc3 {[%clk
0:01:18.5]} 43. h4+ {[%clk 0:01:02.1]} 43... Kh5 {[%clk 0:01:16.6]} 44. Rf5+
{[%clk 0:01:01]} 44... Kg6 {[%clk 0:01:16.2]} 45. Rxa5 {[%clk 0:00:59.8]} 45...
Rxb3 {[%clk 0:01:15.8]} 46. Kh3 {[%clk 0:00:59.5]} 46... Rb4 {[%clk 0:01:14.8]}
47. h5+ {[%clk 0:00:57.7]} 47... Kh6 {[%clk 0:01:14.4]} 48. g4 {[%clk
0:00:57.9]} 48... Rb1 {[%clk 0:01:13.4]} 49. Ra6+ {[%clk 0:00:54.9]} 49... Kg5
{[%clk 0:01:13.3]} 50. Rg6+ {[%clk 0:00:54.5]} 50... Kf4 {[%clk 0:01:13.5]} 51.
h6 {[%clk 0:00:50.6]} 51... Rh1+ {[%clk 0:01:11.8]} 52. Kg2 {[%clk 0:00:50]}
52... Rh4 {[%clk 0:01:11.6]} 53. g5 {[%clk 0:00:47.9]} 53... Kf5 {[%clk
0:01:04]} 54. Rg7 {[%clk 0:00:48]} 54... Rh5 {[%clk 0:00:59.7]} 55. h7 {[%clk
0:00:46.3]} 55... Kg4 {[%clk 0:00:46.1]} 56. g6 {[%clk 0:00:43.4]} 56... Ra5
{[%clk 0:00:44.8]} 57. Rg8 {[%clk 0:00:43.2]} 57... Ra2+ {[%clk 0:00:45.7]} 58.
Kf1 {[%clk 0:00:43.1]} 58... Ra1+ {[%clk 0:00:37.5]} 59. Ke2 {[%clk 0:00:41.7]}
59... Ra2+ {[%clk 0:00:38]} 60. Kd3 {[%clk 0:00:42]} 60... Ra3+ {[%clk
0:00:38.3]} 61. Kc4 {[%clk 0:00:42.2]} 1-0

[Event "*** Titled Tuesday Blitz"]
[Site "Chess.com"]
[Date "2020.11.24"]
[Round "7"]
[White "KononenkoD"]
[Black "Chernov_Mikhail"]
[Result "1-0"]
[WhiteElo "2487"]
[BlackElo "2335"]
[TimeControl "180+1"]
[EndTime "11:34:59 PST"]
[Termination "KononenkoD won by resignation"]

1. d4 {[%clk 0:03:00.9]} 1... d5 {[%clk 0:03:00]} 2. c4 {[%clk 0:03:00.7]} 2...
Nc6 {[%clk 0:03:00.4]} 3. Nf3 {[%clk 0:02:57.1]} 3... Bg4 {[%clk 0:02:59.6]} 4.
c5 {[%clk 0:02:52.7]} 4... Nf6 {[%clk 0:02:55.8]} 5. Nc3 {[%clk 0:02:51.9]} 5...
g6 {[%clk 0:02:49.3]} 6. h3 {[%clk 0:02:40.5]} 6... Bxf3 {[%clk 0:02:49.1]} 7.
gxf3 {[%clk 0:02:40.1]} 7... Bg7 {[%clk 0:02:50]} 8. Bf4 {[%clk 0:02:39.3]} 8...
O-O {[%clk 0:02:49.4]} 9. e3 {[%clk 0:02:39.5]} 9... b6 {[%clk 0:02:32.5]} 10.
Bb5 {[%clk 0:02:34.5]} 10... Nb8 {[%clk 0:02:27.8]} 11. b4 {[%clk 0:02:21.9]}
11... a5 {[%clk 0:02:09.7]} 12. a3 {[%clk 0:02:20.4]} 12... axb4 {[%clk
0:02:10]} 13. axb4 {[%clk 0:02:21.3]} 13... Rxa1 {[%clk 0:02:10.7]} 14. Qxa1
{[%clk 0:02:21.2]} 14... bxc5 {[%clk 0:02:07.7]} 15. bxc5 {[%clk 0:02:22.1]}
15... c6 {[%clk 0:01:56.9]} 16. Bd3 {[%clk 0:02:16.9]} 16... Nbd7 {[%clk
0:01:50.5]} 17. O-O {[%clk 0:02:15.7]} 17... Nh5 {[%clk 0:01:48.5]} 18. Bh2
{[%clk 0:02:09]} 18... e5 {[%clk 0:01:48.1]} 19. Ne2 {[%clk 0:02:04.3]} 19...
exd4 {[%clk 0:01:41.5]} 20. exd4 {[%clk 0:02:03.4]} 20... Nxc5 {[%clk
0:01:41.7]} 21. Bc2 {[%clk 0:01:58.2]} 21... Ne6 {[%clk 0:01:38.8]} 22. Qc1
{[%clk 0:01:50.5]} 22... Qh4 {[%clk 0:01:33.6]} 23. Kg2 {[%clk 0:01:41.7]} 23...
Ng5 {[%clk 0:00:54.8]} 24. Ng1 {[%clk 0:01:41]} 24... Bxd4 {[%clk 0:00:51.3]}
25. Bg3 {[%clk 0:01:36.1]} 25... Nxg3 {[%clk 0:00:46.5]} 26. fxg3 {[%clk
0:01:35.9]} 26... Qh5 {[%clk 0:00:43.1]} 27. Bd1 {[%clk 0:01:25.9]} 27... Bxg1
{[%clk 0:00:41.8]} 28. h4 {[%clk 0:01:26.1]} 28... Ra8 {[%clk 0:00:23.1]} 29.
Qxg5 {[%clk 0:01:13.3]} 29... Qxg5 {[%clk 0:00:22]} 30. hxg5 {[%clk 0:01:14.2]}
30... Bd4 {[%clk 0:00:21]} 31. f4 {[%clk 0:01:11.1]} 31... Ra2+ {[%clk
0:00:20.7]} 32. Kf3 {[%clk 0:01:09.7]} 32... c5 {[%clk 0:00:20.8]} 33. Kg4
{[%clk 0:01:08.1]} 33... c4 {[%clk 0:00:19.5]} 34. Bf3 {[%clk 0:01:08]} 34...
Ra5 {[%clk 0:00:19.8]} 35. Rd1 {[%clk 0:01:07.6]} 35... c3 {[%clk 0:00:15.5]}
36. Be2 {[%clk 0:00:58.3]} 36... c2 {[%clk 0:00:13.5]} 37. Rc1 {[%clk
0:00:56.8]} 37... Rc5 {[%clk 0:00:09.2]} 38. Bd3 {[%clk 0:00:56.7]} 38... Rc3
{[%clk 0:00:07.4]} 39. Bxc2 {[%clk 0:00:46]} 39... Bf2 {[%clk 0:00:07.5]} 40. f5
{[%clk 0:00:37.6]} 40... Rxg3+ {[%clk 0:00:02.7]} 41. Kf4 {[%clk 0:00:37.2]}
41... Rc3 {[%clk 0:00:03.6]} 42. Ke5 {[%clk 0:00:36]} 42... Be3 {[%clk
0:00:03.6]} 43. Rb1 {[%clk 0:00:33]} 43... Rxc2 {[%clk 0:00:03.2]} 44. Rb8+
{[%clk 0:00:33.2]} 1-0

[Event "*** Titled Tuesday Blitz"]
[Site "Chess.com"]
[Date "2020.11.24"]
[Round "7"]
[White "anon102030"]
[Black "Chopper1905"]
[Result "0-1"]
[WhiteElo "2716"]
[BlackElo "2961"]
[TimeControl "180+1"]
[EndTime "11:35:00 PST"]
[Termination "Chopper1905 won on time"]

1. e4 {[%clk 0:03:00.9]} 1... Nc6 {[%clk 0:02:59.9]} 2. Nc3 {[%clk 0:02:59.7]}
2... e5 {[%clk 0:03:00]} 3. g3 {[%clk 0:03:00]} 3... Bc5 {[%clk 0:02:58.8]} 4.
Bg2 {[%clk 0:03:00.4]} 4... d6 {[%clk 0:02:59.1]} 5. d3 {[%clk 0:03:00.8]} 5...
Nf6 {[%clk 0:02:59.3]} 6. Nf3 {[%clk 0:03:00.8]} 6... h6 {[%clk 0:02:58.3]} 7.
Be3 {[%clk 0:03:01.1]} 7... Be6 {[%clk 0:02:54.4]} 8. d4 {[%clk 0:02:59.7]} 8...
exd4 {[%clk 0:02:50.2]} 9. Nxd4 {[%clk 0:03:00.6]} 9... Nxd4 {[%clk 0:02:40.8]}
10. Bxd4 {[%clk 0:03:01.5]} 10... Bxd4 {[%clk 0:02:39]} 11. Qxd4 {[%clk
0:03:02.4]} 11... Nd7 {[%clk 0:02:37]} 12. Qxg7 {[%clk 0:02:57.1]} 12... Qf6
{[%clk 0:02:34.7]} 13. Qxf6 {[%clk 0:02:55.1]} 13... Nxf6 {[%clk 0:02:35.6]} 14.
O-O-O {[%clk 0:02:51.5]} 14... h5 {[%clk 0:02:32.9]} 15. e5 {[%clk 0:02:46]}
15... dxe5 {[%clk 0:02:29.4]} 16. Bxb7 {[%clk 0:02:45.9]} 16... Rb8 {[%clk
0:02:30]} 17. Bc6+ {[%clk 0:02:46.1]} 17... Ke7 {[%clk 0:02:30.5]} 18. Rhe1
{[%clk 0:02:45]} 18... Rb6 {[%clk 0:02:28.3]} 19. Ba4 {[%clk 0:02:42.3]} 19...
Ng4 {[%clk 0:02:25]} 20. Rd2 {[%clk 0:02:30.5]} 20... Rd6 {[%clk 0:02:17.8]} 21.
Rde2 {[%clk 0:02:19.1]} 21... Nxh2 {[%clk 0:02:14.6]} 22. f4 {[%clk 0:02:08.5]}
22... exf4 {[%clk 0:02:08.5]} 23. Rxh2 {[%clk 0:02:05.2]} 23... fxg3 {[%clk
0:02:08.3]} 24. Rh4 {[%clk 0:02:03.2]} 24... Rg8 {[%clk 0:01:56]} 25. Rxh5
{[%clk 0:01:51.1]} 25... Rd4 {[%clk 0:01:55.8]} 26. Bc6 {[%clk 0:01:27.7]} 26...
a6 {[%clk 0:01:24.2]} 27. Rg1 {[%clk 0:01:23.2]} 27... f5 {[%clk 0:01:17]} 28.
Re1 {[%clk 0:01:13.1]} 28... Kd6 {[%clk 0:01:11.9]} 29. Rh6 {[%clk 0:01:10.6]}
29... Kxc6 {[%clk 0:01:09.5]} 30. Rhxe6+ {[%clk 0:00:59.7]} 30... Kb7 {[%clk
0:01:09.9]} 31. Ne2 {[%clk 0:00:50.9]} 31... Rdg4 {[%clk 0:01:09.9]} 32. Rf6
{[%clk 0:00:48.1]} 32... Re4 {[%clk 0:01:04.6]} 33. Kd2 {[%clk 0:00:19.8]} 33...
g2 {[%clk 0:00:16.6]} 34. Rxf5 {[%clk 0:00:15.5]} 34... Rd8+ {[%clk 0:00:16.2]}
35. Kc3 {[%clk 0:00:14.6]} 35... Re3+ {[%clk 0:00:15.6]} 36. Kb4 {[%clk
0:00:13.1]} 36... Rxe2 {[%clk 0:00:16.5]} 37. Rg1 {[%clk 0:00:12]} 37... Rxc2
{[%clk 0:00:16.6]} 38. Rg5 {[%clk 0:00:02.8]} 38... Rxb2+ {[%clk 0:00:16.3]} 39.
Ka3 {[%clk 0:00:03.3]} 39... Rdd2 {[%clk 0:00:16.7]} 0-1

[Event "*** Titled Tuesday Blitz"]
[Site "Chess.com"]
[Date "2020.11.24"]
[Round "7"]
[White "GMKrikor"]
[Black "ajdemipopushi"]
[Result "1-0"]
[WhiteElo "2716"]
[BlackElo "2438"]
[TimeControl "180+1"]
[EndTime "11:35:00 PST"]
[Termination "GMKrikor won on time"]

1. e4 {[%clk 0:03:00.9]} 1... c5 {[%clk 0:02:59.5]} 2. Nf3 {[%clk 0:03:00.7]}
2... g6 {[%clk 0:03:00]} 3. d4 {[%clk 0:02:57.4]} 3... cxd4 {[%clk 0:03:00.2]}
4. Nxd4 {[%clk 0:02:58.3]} 4... Bg7 {[%clk 0:03:00]} 5. c4 {[%clk 0:02:58.9]}
5... Nc6 {[%clk 0:03:00.6]} 6. Be3 {[%clk 0:02:59.2]} 6... Nf6 {[%clk
0:03:00.4]} 7. Nc3 {[%clk 0:02:59.3]} 7... Nxd4 {[%clk 0:03:01.1]} 8. Bxd4
{[%clk 0:02:58.6]} 8... Qa5 {[%clk 0:03:01.7]} 9. Bd3 {[%clk 0:02:40.9]} 9... d6
{[%clk 0:03:01.7]} 10. O-O {[%clk 0:02:40.4]} 10... O-O {[%clk 0:02:54.7]} 11.
h3 {[%clk 0:02:37.8]} 11... Be6 {[%clk 0:02:53.4]} 12. Rc1 {[%clk 0:02:33.8]}
12... Rfc8 {[%clk 0:02:52.9]} 13. b3 {[%clk 0:02:23.8]} 13... a6 {[%clk
0:02:52.6]} 14. Qe2 {[%clk 0:02:17.2]} 14... Nd7 {[%clk 0:01:17.7]} 15. Bxg7
{[%clk 0:02:14.9]} 15... Kxg7 {[%clk 0:01:17.7]} 16. f4 {[%clk 0:01:43.1]} 16...
f6 {[%clk 0:01:13.1]} 17. Nd5 {[%clk 0:01:34.4]} 17... Re8 {[%clk 0:00:55.8]}
18. b4 {[%clk 0:01:31.5]} 18... Qd8 {[%clk 0:00:52.2]} 19. a3 {[%clk 0:01:25.9]}
19... a5 {[%clk 0:00:50.5]} 20. Qb2 {[%clk 0:01:24.1]} 20... axb4 {[%clk
0:00:47.5]} 21. axb4 {[%clk 0:01:25]} 21... Bxd5 {[%clk 0:00:43.7]} 22. exd5
{[%clk 0:01:21.5]} 22... b6 {[%clk 0:00:39.1]} 23. Rfe1 {[%clk 0:01:19.6]} 23...
Ra7 {[%clk 0:00:36]} 24. Qd4 {[%clk 0:01:15.3]} 24... Ra3 {[%clk 0:00:31.2]} 25.
Re3 {[%clk 0:01:14.7]} 25... Kf7 {[%clk 0:00:25]} 26. h4 {[%clk 0:01:01.7]}
26... Qa8 {[%clk 0:00:23.1]} 27. h5 {[%clk 0:01:01.2]} 27... Nf8 {[%clk
0:00:16.3]} 28. hxg6+ {[%clk 0:00:51.6]} 28... hxg6 {[%clk 0:00:16.2]} 29. Qxb6
{[%clk 0:00:36.2]} 29... Ra1 {[%clk 0:00:12]} 30. Ree1 {[%clk 0:00:33.8]} 30...
Rxc1 {[%clk 0:00:11.7]} 31. Rxc1 {[%clk 0:00:33.8]} 31... Qa3 {[%clk 0:00:11.5]}
32. Rd1 {[%clk 0:00:27.2]} 32... Qb3 {[%clk 0:00:11.2]} 33. Be2 {[%clk
0:00:27.5]} 33... Qc2 {[%clk 0:00:09.9]} 34. Kf1 {[%clk 0:00:23.5]} 34... Qe4
{[%clk 0:00:06.5]} 35. Qd4 {[%clk 0:00:21.3]} 35... Qc2 {[%clk 0:00:04.5]} 36.
Qd2 {[%clk 0:00:18.4]} 36... Qa4 {[%clk 0:00:01.4]} 37. Qc3 {[%clk 0:00:13.3]}
1-0

[Event "*** Titled Tuesday Blitz"]
[Site "Chess.com"]
[Date "2020.11.24"]
[Round "7"]
[White "Chess_Boxer123"]
[Black "andrzej"]
[Result "0-1"]
[WhiteElo "2521"]
[BlackElo "2402"]
[TimeControl "180+1"]
[EndTime "11:35:03 PST"]
[Termination "andrzej won by checkmate"]

1. Nh3 {[%clk 0:03:00]} 1... e5 {[%clk 0:02:57.1]} 2. f3 {[%clk 0:03:00]} 2...
d5 {[%clk 0:02:56.2]} 3. Nf2 {[%clk 0:03:00.5]} 3... Nc6 {[%clk 0:02:55.9]} 4.
g3 {[%clk 0:03:01.1]} 4... Nf6 {[%clk 0:02:54.4]} 5. Bg2 {[%clk 0:03:01.5]} 5...
h5 {[%clk 0:02:54.1]} 6. e4 {[%clk 0:02:56.5]} 6... Bc5 {[%clk 0:02:51.7]} 7.
Nc3 {[%clk 0:02:54.9]} 7... h4 {[%clk 0:02:45]} 8. d3 {[%clk 0:02:53.6]} 8... h3
{[%clk 0:02:31.5]} 9. Bf1 {[%clk 0:02:53.2]} 9... Nd4 {[%clk 0:02:25.5]} 10. Be2
{[%clk 0:02:51.3]} 10... c6 {[%clk 0:02:23.7]} 11. O-O {[%clk 0:02:47]} 11...
dxe4 {[%clk 0:02:22.9]} 12. fxe4 {[%clk 0:02:34.9]} 12... Nxe2+ {[%clk
0:02:14.5]} 13. Qxe2 {[%clk 0:02:34.6]} 13... Bg4 {[%clk 0:02:13.6]} 14. Qe1
{[%clk 0:02:33.9]} 14... Bf3 {[%clk 0:02:08.5]} 15. Be3 {[%clk 0:02:33.8]} 15...
Bxe3 {[%clk 0:02:06.2]} 16. Qxe3 {[%clk 0:02:32.9]} 16... Bg2 {[%clk 0:02:06.6]}
17. Rfe1 {[%clk 0:02:31.8]} 17... Qb6 {[%clk 0:02:06]} 18. Qxb6 {[%clk
0:02:29.9]} 18... axb6 {[%clk 0:02:06.9]} 19. a3 {[%clk 0:02:27.7]} 19... b5
{[%clk 0:01:54.8]} 20. Ncd1 {[%clk 0:02:26.2]} 20... b4 {[%clk 0:01:54.4]} 21.
a4 {[%clk 0:02:25.8]} 21... b5 {[%clk 0:01:40.4]} 22. a5 {[%clk 0:02:25.8]}
22... Ke7 {[%clk 0:01:38.3]} 23. Ne3 {[%clk 0:02:25.4]} 23... g6 {[%clk
0:01:30.7]} 24. c3 {[%clk 0:02:11]} 24... bxc3 {[%clk 0:01:24.9]} 25. bxc3
{[%clk 0:02:11.9]} 25... Ra6 {[%clk 0:01:25.2]} 26. d4 {[%clk 0:02:07.3]} 26...
Rha8 {[%clk 0:01:18.2]} 27. dxe5 {[%clk 0:01:56.2]} 27... Nxe4 {[%clk
0:01:15.1]} 28. Nxg2 {[%clk 0:01:37.6]} 28... Nxf2 {[%clk 0:01:14.2]} 29. Nf4
{[%clk 0:01:37.4]} 29... Ng4 {[%clk 0:01:10.2]} 30. e6 {[%clk 0:01:27.9]} 30...
Rxa5 {[%clk 0:01:09.4]} 31. Rad1 {[%clk 0:01:27.8]} 31... R8a7 {[%clk
0:00:50.3]} 32. exf7+ {[%clk 0:01:10.6]} 32... Kxf7 {[%clk 0:00:50.3]} 33. Rd6
{[%clk 0:01:10.9]} 33... Ra2 {[%clk 0:00:46.8]} 34. Nxh3 {[%clk 0:01:08.2]}
34... Rc2 {[%clk 0:00:38.7]} 35. Rxc6 {[%clk 0:00:43.3]} 35... Raa2 {[%clk
0:00:37.3]} 36. Rc7+ {[%clk 0:00:15.3]} 36... Kf8 {[%clk 0:00:28.7]} 37. Nf4
{[%clk 0:00:06.6]} 37... Ne5 {[%clk 0:00:18.2]} 38. Rc5 {[%clk 0:00:03.7]} 38...
Nf3+ {[%clk 0:00:17.1]} 39. Kh1 {[%clk 0:00:04.2]} 39... Rxh2# {[%clk
0:00:16.2]} 0-1